bitfinex/quotes_BTCUSD_20241124
["timestamp","ask_amount","ask_price","bid_price","bid_amount"]
[1732465201659,0.104092,96069.0,96064.0,0.062458]
[1732465201809,0.104092,96069.0,96062.0,0.062459]
[1732465202025,0.104092,96069.0,96064.0,0.062457]
[1732465202217,0.208179,96071.0,96062.0,0.062459]
[1732465202218,0.104095,96066.0,96062.0,0.062459]
[1732465202452,0.104091,96069.0,96064.0,0.062457]
[1732465202717,0.208179,96071.0,96064.0,0.062457]
[1732465202970,0.104093,96068.0,96064.0,0.062457]
[1732465203191,0.312271,96070.0,96063.0,0.062458]
[1732465203413,0.104092,96069.0,96064.0,0.062458]
[1732465203842,0.104093,96068.0,96063.0,0.124916]
[1732465204048,0.208183,96069.0,96055.0,0.0008558]
[1732465204504,0.104095,96066.0,96061.0,0.062459]
[1732465204727,0.08874535,96065.0,96061.0,0.062459]
[1732465204929,0.08874535,96065.0,96062.0,0.062459]
[1732465205356,0.08874535,96065.0,96063.0,0.062458]
[1732465205582,0.19284135,96065.0,96060.0,0.06246]
[1732465205803,0.08874535,96065.0,96061.0,0.062459]
[1732465206262,0.19284135,96065.0,96060.0,0.06246]
[1732465206525,0.104105,96056.0,96055.0,0.0008558]
[1732465207176,0.181302,96060.0,96055.0,0.0008558]
[1732465207381,0.083,96066.0,96055.0,0.0008558]
[1732465207582,0.104099,96062.0,96057.0,0.062462]
[1732465207949,0.083,96066.0,96055.0,0.0008558]
[1732465208103,0.208194,96064.0,96055.0,0.0008558]
[1732465208500,0.0496,96065.0,96056.0,0.062463]
[1732465208701,0.0496,96065.0,96055.0,0.0008558]
[1732465208702,0.208196,96063.0,96055.0,0.0008558]
[1732465208929,0.13834535,96065.0,96049.0,0.15]
[1732465208930,0.208194,96064.0,96053.0,0.0553208]
[1732465209138,0.104099,96062.0,96057.0,0.062462]
[1732465209612,0.13834535,96065.0,96045.0,0.56194699]
[1732465209613,0.08874535,96065.0,96046.0,0.41365919]
[1732465209838,0.08874535,96065.0,96049.0,0.15]
[1732465210045,0.208207,96058.0,96048.0,0.062468]
[1732465210474,0.104106,96056.0,96048.0,0.47441499]
[1732465210699,0.104106,96056.0,96051.0,0.062466]
[1732465211331,0.10411,96052.0,96046.0,0.0641812]
[1732465211552,0.208201,96061.0,96046.0,0.0641812]
[1732465211553,0.208216,96054.0,96048.0,0.41242405]
[1732465211763,0.10201427,96060.0,96046.0,0.0017122]
[1732465211983,0.104112,96050.0,96046.0,0.0017122]
[1732465212784,0.20822,96052.0,96046.0,0.0017122]
[1732465212993,0.31233,96052.0,96046.0,0.0641822]
[1732465213191,0.20822,96052.0,96046.0,0.0017122]
[1732465213448,0.104113,96050.0,96046.0,0.0017122]
[1732465213646,0.104111,96051.0,96046.0,0.0017122]
[1732465213803,0.104111,96051.0,96046.0,0.0641822]
[1732465214000,0.104115,96047.0,96046.0,0.0017122]
[1732465214734,0.104131,96032.0,96031.0,0.0017124]
[1732465214931,0.28914527,96032.0,96031.0,0.0017124]
[1732465215343,0.33734527,96032.0,96031.0,0.0017124]
[1732465215545,0.23321427,96032.0,96004.0,0.000857]
[1732465215762,0.10201427,96031.0,96010.0,0.45272623]
[1732465216105,0.10201427,96031.0,96010.0,0.04]
[1732465216457,0.10201427,96031.0,96012.0,0.062491]
[1732465216458,0.104147,96018.0,96012.0,0.062491]
[1732465216698,0.104149,96016.0,96010.0,0.102493]
[1732465216893,0.208289,96021.0,96010.0,0.04]
[1732465217094,0.08874535,96030.0,96015.0,0.06249]
[1732465217412,0.08874535,96030.0,96010.0,0.04]
[1732465217413,0.10201427,96030.0,96010.0,0.04]
[1732465217613,0.208256,96036.0,96026.0,0.062482]
[1732465217725,0.104132,96032.0,96026.0,0.062482]
[1732465217927,0.208259,96034.0,96022.0,0.062485]
[1732465218125,0.104133,96031.0,96026.0,0.062482]
[1732465218337,0.10201427,96035.0,96012.0,0.081]
[1732465218764,0.208262,96033.0,96021.0,0.062485]
[1732465218982,0.104137,96027.0,96022.0,0.062485]
[1732465219420,0.208266,96031.0,96022.0,0.062485]
[1732465219421,0.104135,96029.0,96022.0,0.062485]
[1732465219864,0.104138,96026.0,96012.0,0.081]
[1732465220099,0.104143,96022.0,96016.0,0.062489]
[1732465220323,0.08874535,96032.0,96010.0,0.04]
[1732465220525,0.22497882,96040.0,96010.0,0.04]
[1732465220526,0.208292,96019.0,96010.0,0.04]
[1732465220751,0.08874535,96020.0,96010.0,0.04]
[1732465221142,0.208294,96018.0,96010.0,0.04]
[1732465221392,0.104154,96011.0,96010.0,0.04]
[1732465221536,0.10415,96015.0,96010.0,0.112908]
[1732465221737,0.1252387,96021.0,96010.0,0.04]
[1732465221962,0.083,96021.0,96013.0,0.072906]
[1732465222159,0.291289,96021.0,96011.0,0.072907]
[1732465222361,0.104146,96019.0,96010.0,0.04]
[1732465222590,0.208289,96020.0,96010.0,0.112908]
[1732465222826,0.104147,96018.0,96012.0,0.072907]
[1732465223022,0.208292,96019.0,96010.0,0.112908]
[1732465223184,0.104149,96016.0,96010.0,0.112908]
[1732465223386,0.104149,96016.0,96010.0,0.185816]
[1732465223581,0.083,96021.0,96013.0,0.072906]
[1732465223852,0.083,96021.0,96010.0,0.04]
[1732465223853,0.104148,96017.0,96012.0,0.072907]
[1732465224057,0.104141,96024.0,96013.0,0.072906]
[1732465224206,0.10201427,96023.0,96010.0,0.04]
[1732465224413,0.0788,96028.0,96010.0,0.04]
[1732465224707,0.104144,96021.0,96015.0,0.072904]
[1732465224921,0.208284,96023.0,96016.0,0.072904]
[1732465225137,0.104139,96026.0,96019.0,0.072901]
[1732465225377,0.104138,96026.0,96021.0,0.0729]
[1732465225577,0.208259,96034.0,96015.0,0.072904]
[1732465225789,0.10201427,96033.0,96016.0,0.072904]
[1732465226000,0.10201427,96033.0,96020.0,0.145802]
[1732465226001,0.104138,96026.0,96020.0,0.145802]
[1732465226172,0.104138,96026.0,96021.0,0.0729]
[1732465226393,0.10201427,96033.0,96026.0,0.072896]
[1732465226613,0.10201427,96030.0,96027.0,0.072895]
[1732465226803,0.10201427,96030.0,96023.0,0.072899]
[1732465227028,0.20614827,96030.0,96025.0,0.072897]
[1732465227224,0.104136,96028.0,96023.0,0.072898]
[1732465227456,0.208259,96034.0,96026.0,0.072896]
[1732465227674,0.10201427,96033.0,96022.0,0.072899]
[1732465227886,0.10201427,96033.0,96016.0,0.0809]
[1732465227887,0.208263,96032.0,96023.0,0.072899]
[1732465228088,0.10201427,96031.0,96024.0,0.072898]
[1732465228310,0.104134,96030.0,96024.0,0.072898]
[1732465228530,0.10201427,96031.0,96023.0,0.072899]
[1732465228734,0.10201427,96031.0,96016.0,0.0809]
[1732465228942,0.104135,96029.0,96021.0,0.0729]
[1732465229145,0.104136,96028.0,96023.0,0.072898]
[1732465229580,0.104137,96027.0,96022.0,0.072899]
[1732465230223,0.10201427,96031.0,96016.0,0.153804]
[1732465230485,0.10201427,96031.0,96015.0,0.072904]
[1732465230486,0.208286,96022.0,96015.0,0.072904]
[1732465230710,0.10201427,96022.0,96008.0,0.000857]
[1732465230939,0.12068755,96036.0,96008.0,0.000857]
[1732465230940,0.104154,96011.0,96008.0,0.000857]
[1732465231156,0.37933435,96020.0,96008.0,0.073767]
[1732465231157,0.208294,96018.0,96008.0,0.073767]
[1732465231393,0.10201427,96019.0,96008.0,0.000857]
[1732465231592,0.10201427,96019.0,96008.0,0.073767]
[1732465231803,0.208296,96017.0,96008.0,0.073767]
[1732465232033,0.21356423,96020.0,96008.0,0.000857]
[1732465232034,0.0823,96020.0,96008.0,0.000857]
[1732465232253,0.104154,96011.0,96008.0,0.000857]
[1732465232460,0.208307,96013.0,96008.0,0.000857]
[1732465232461,0.104154,96012.0,96008.0,0.000857]
[1732465232688,0.104153,96013.0,96008.0,0.073767]
[1732465232922,0.10201427,96017.0,96011.0,0.072907]
[1732465233137,0.104149,96016.0,96008.0,0.000857]
[1732465233360,0.104152,96014.0,96008.0,0.073767]
[1732465233587,0.10201427,96017.0,96010.0,0.1137643]
[1732465234033,0.104151,96015.0,96010.0,0.1137643]
[1732465234284,0.10201427,96017.0,96010.0,0.0408563]
[1732465234488,0.104154,96011.0,96010.0,0.0408563]
[1732465234715,0.10201427,96017.0,96010.0,0.0408563]
[1732465234928,0.104154,96011.0,96010.0,0.0408563]
[1732465235157,0.2083,96015.0,96010.0,0.0408563]
[1732465235597,0.104151,96015.0,96010.0,0.0408563]
[1732465235803,0.10201427,96017.0,96010.0,0.0408563]
[1732465236014,0.104153,96013.0,96010.0,0.0408563]
[1732465236234,0.2083,96015.0,96010.0,0.0408563]
[1732465236449,0.104154,96011.0,96010.0,0.0408563]
[1732465236685,0.2083,96015.0,96010.0,0.0408563]
[1732465236893,0.10201427,96017.0,96010.0,0.0408563]
[1732465237096,0.104153,96013.0,96010.0,0.0408563]
[1732465237546,0.104154,96011.0,96010.0,0.0408563]
[1732465237765,0.104153,96013.0,96010.0,0.0408563]
[1732465237995,0.104154,96012.0,96010.0,0.0408563]
[1732465238228,0.31031127,96017.0,96010.0,0.0408563]
[1732465238473,0.104154,96011.0,96010.0,0.0408563]
[1732465239099,0.104154,96011.0,96010.0,0.0008563]
[1732465244516,0.154154,96011.0,96010.0,0.0008563]
[1732465245777,0.05,96011.0,96010.0,0.0008563]
[1732465246135,0.05,96011.0,96010.0,0.0737653]
[1732465246340,0.05,96011.0,96010.0,0.0008563]
[1732465246754,0.154154,96011.0,96010.0,0.0008563]
[1732465246965,0.17456813,96011.0,96010.0,0.0008563]
[1732465247381,0.07041413,96011.0,96010.0,0.0008563]
[1732465247606,0.07041413,96011.0,96010.0,0.0737653]
[1732465247764,0.07041413,96011.0,96010.0,0.0008563]
[1732465248825,0.17456813,96011.0,96010.0,0.0008563]
[1732465249435,0.05,96011.0,96010.0,0.1234563]
[1732465249721,0.05,96011.0,96010.0,0.1963653]
[1732465250935,0.05,96011.0,96010.0,0.23866649]
[1732465251769,0.05,96011.0,96010.0,0.1963653]
[1732465257572,0.05,96011.0,96007.0,0.11527976]
[1732465257780,0.05,96011.0,96008.0,0.07291]
[1732465257988,0.05,96011.0,96010.0,0.072909]
[1732465258213,0.05,96011.0,96010.0,0.48601243]
[1732465258451,0.05,96011.0,96010.0,0.072909]
[1732465258674,0.05,96011.0,96010.0,0.48616489]
[1732465258874,0.05,96011.0,96010.0,0.072909]
[1732465259079,0.05,96011.0,96010.0,0.48616489]
[1732465259506,0.05,96011.0,96010.0,0.072909]
[1732465260640,0.05,96011.0,96010.0,0.150509]
[1732465261464,0.05,96011.0,96010.0,0.072909]
[1732465264225,0.05,96011.0,96010.0,0.0737654]
[1732465267247,0.229554,96011.0,96010.0,0.0008564]
[1732465268067,0.22741427,96011.0,96010.0,0.0008564]
[1732465268279,0.33156827,96011.0,96010.0,0.0008564]
[1732465268971,0.34830109,96011.0,96010.0,0.0008564]
[1732465269751,0.104174,95993.0,95992.0,0.41374525]
[1732465270059,0.104174,95993.0,95987.0,0.41374525]
[1732465270060,0.228676,95991.0,95987.0,0.41374525]
[1732465270186,0.33069027,95991.0,95983.0,0.41374525]
[1732465270393,0.33069027,95991.0,95980.0,0.41374525]
[1732465270620,0.33069027,95991.0,95978.0,0.41374525]
[1732465270987,0.33069027,95991.0,95979.0,0.41374525]
[1732465271416,0.37395434,95991.0,95977.0,0.41460095]
[1732465271625,0.33069027,95991.0,95977.0,0.41460095]
[1732465271835,0.33069027,95991.0,95978.0,0.41374525]
[1732465272088,0.33069027,95991.0,95979.0,0.41374525]
[1732465272300,0.33069027,95991.0,95978.0,0.072933]
[1732465272301,0.33069027,95991.0,95978.0,0.41374525]
[1732465272498,0.33069027,95991.0,95977.0,0.0008557]
[1732465273552,0.33069027,95991.0,95978.0,0.072933]
[1732465274378,0.33069027,95991.0,95977.0,0.0008557]
[1732465274598,0.33069027,95991.0,95979.0,0.072932]
[1732465275273,0.33069027,95991.0,95977.0,0.0008557]
[1732465275490,0.33069027,95991.0,95981.0,0.07293]
[1732465275704,0.33069027,95991.0,95984.0,0.072928]
[1732465275938,0.33069027,95991.0,95982.0,0.072929]
[1732465276168,0.35158735,95991.0,95979.0,0.072932]
[1732465276421,0.35158735,95991.0,95985.0,0.072927]
[1732465276624,0.35158735,95991.0,95982.0,0.07293]
[1732465277066,0.35158735,95991.0,95980.0,0.072931]
[1732465277594,0.35158735,95991.0,95979.0,0.072932]
[1732465277646,0.35158735,95991.0,95979.0,0.145863]
[1732465277980,0.35158735,95991.0,95978.0,0.072933]
[1732465278202,0.35158735,95991.0,95977.0,0.0008557]
[1732465278420,0.35158735,95991.0,95980.0,0.072931]
[1732465278644,0.35158735,95991.0,95977.0,0.0008557]
[1732465280924,0.71832017,95991.0,95977.0,0.0008557]
[1732465281154,0.72032017,95991.0,95977.0,0.0008557]
[1732465282250,0.92032017,95991.0,95977.0,0.0008557]
[1732465283126,0.99777285,95991.0,95977.0,0.0008557]
[1732465283347,0.10422,95951.0,95944.0,0.072958]
[1732465283575,0.104226,95946.0,95934.0,0.0785]
[1732465283846,0.104226,95945.0,95939.0,0.072962]
[1732465284089,0.104226,95946.0,95940.0,0.072961]
[1732465284315,0.104228,95944.0,95934.0,0.0785]
[1732465284526,0.208448,95947.0,95940.0,0.072961]
[1732465284743,0.208448,95947.0,95936.0,0.072964]
[1732465284961,0.104228,95943.0,95938.0,0.072963]
[1732465285219,0.104228,95943.0,95937.0,0.072964]
[1732465285465,0.10201427,95950.0,95947.0,0.072956]
[1732465285688,0.10201427,95950.0,95928.0,0.15]
[1732465285906,0.10201427,95950.0,95944.0,0.145917]
[1732465286118,0.20623527,95950.0,95944.0,0.072958]
[1732465286553,0.10201427,95950.0,95948.0,0.072955]
[1732465286804,0.16274942,95966.0,95960.0,0.072946]
[1732465287010,0.16274942,95966.0,95961.0,0.072946]
[1732465287011,0.05854542,95966.0,95961.0,0.072946]
[1732465287230,0.05854542,95966.0,95965.0,0.072943]
[1732465287453,0.09896817,95975.0,95963.0,0.072944]
[1732465287679,0.10201427,95974.0,95967.0,0.072941]
[1732465287896,0.31040427,95974.0,95965.0,0.072943]
[1732465288113,0.104199,95970.0,95965.0,0.072943]
[1732465288329,0.10201427,95970.0,95965.0,0.072942]
[1732465288541,0.10201427,95970.0,95967.0,0.072941]
[1732465288755,0.10201427,95970.0,95948.0,0.04174498]
[1732465289214,0.10201427,95970.0,95966.0,0.072942]
[1732465289700,0.10201427,95970.0,95965.0,0.072943]
[1732465289921,0.10201427,95970.0,95963.0,0.072944]
[1732465290181,0.10201427,95970.0,95962.0,0.072945]
[1732465290182,0.20621327,95970.0,95962.0,0.072945]
[1732465290388,0.20621327,95970.0,95955.0,0.07295]
[1732465290389,0.20621327,95970.0,95964.0,0.072943]
[1732465290611,0.10201427,95970.0,95965.0,0.072943]
[1732465290835,0.20621427,95970.0,95965.0,0.072943]
[1732465291053,0.20621427,95970.0,95965.0,0.145885]
[1732465291267,0.10201427,95970.0,95966.0,0.072942]
[1732465291495,0.10201427,95970.0,95951.0,0.072953]
[1732465291690,0.104201,95968.0,95963.0,0.072944]
[1732465291896,0.10201427,95970.0,95963.0,0.072944]
[1732465292108,0.20621327,95970.0,95965.0,0.072942]
[1732465292316,0.20621327,95970.0,95965.0,0.072943]
[1732465292317,0.10201427,95970.0,95965.0,0.072943]
[1732465292548,0.10201427,95970.0,95966.0,0.072942]
[1732465292795,0.10201427,95970.0,95967.0,0.072941]
[1732465293008,0.09699385,95969.0,95968.0,0.07294]
[1732465293472,0.10201427,95970.0,95968.0,0.07294]
[1732465293698,0.10201427,95970.0,95966.0,0.072942]
[1732465293905,0.10201427,95970.0,95964.0,0.072943]
[1732465294120,0.10201427,95970.0,95967.0,0.072941]
[1732465294329,0.10201427,95970.0,95968.0,0.07294]
[1732465294552,0.10201427,95970.0,95966.0,0.072942]
[1732465295920,0.10201427,95970.0,95966.0,0.072942]
[1732465296847,0.10201427,95970.0,95967.0,0.072941]
[1732465297495,0.10201427,95970.0,95966.0,0.145884]
[1732465297711,0.10201427,95970.0,95966.0,0.072942]
[1732465298177,0.10201427,95970.0,95967.0,0.072941]
[1732465298602,0.10201427,95970.0,95961.0,0.072946]
[1732465298815,0.10201427,95970.0,95966.0,0.072942]
[1732465299051,0.104203,95966.0,95961.0,0.072946]
[1732465299275,0.104202,95967.0,95958.0,0.072948]
[1732465299497,0.104203,95967.0,95961.0,0.072946]
[1732465299763,0.10201427,95966.0,95947.0,0.0818]
[1732465299987,0.10201427,95966.0,95919.0,0.31328371]
[1732465299988,0.08874535,95957.0,95928.0,0.0818]
[1732465300237,0.208433,95954.0,95934.0,0.072966]
[1732465300487,0.08874535,95957.0,95931.0,0.072969]
[1732465300488,0.104231,95941.0,95935.0,0.072965]
[1732465300685,0.20845,95947.0,95938.0,0.0738195]
[1732465300901,0.10201427,95946.0,95940.0,0.072962]
[1732465301128,0.104227,95945.0,95940.0,0.072961]
[1732465301363,0.104227,95945.0,95938.0,0.0008565]
[1732465301364,0.10201427,95945.0,95944.0,0.072959]
[1732465301603,0.19916702,95945.0,95944.0,0.072959]
[1732465301822,0.19916702,95945.0,95938.0,0.0008565]
[1732465301823,0.10201427,95945.0,95943.0,0.072959]
[1732465302495,0.10201427,95945.0,95938.0,0.0008565]
[1732465302726,0.10201427,95945.0,95941.0,0.072961]
[1732465303410,0.10201427,95945.0,95940.0,0.145922]
[1732465303635,0.20624027,95945.0,95941.0,0.072961]
[1732465303863,0.10201427,95945.0,95942.0,0.07296]
[1732465304075,0.10201427,95945.0,95940.0,0.072961]
[1732465304315,0.10201427,95945.0,95941.0,0.072961]
[1732465304526,0.10201427,95945.0,95943.0,0.072959]
[1732465304734,0.10201427,95945.0,95941.0,0.145922]
[1732465305333,0.023,95950.0,95938.0,0.0008565]
[1732465305577,0.12501427,95954.0,95939.0,0.072963]
[1732465305775,0.10201427,95954.0,95950.0,0.072954]
[1732465305989,0.10201427,95954.0,95938.0,0.0008565]
[1732465305990,0.10201427,95954.0,95939.0,0.072963]
[1732465306210,0.10201427,95954.0,95938.0,0.0008565]
[1732465306211,0.10201427,95954.0,95945.0,0.072958]
[1732465306419,0.10201427,95954.0,95938.0,0.0008565]
[1732465306871,0.104218,95953.0,95947.0,0.072956]
[1732465307083,0.10201427,95954.0,95947.0,0.072956]
[1732465307528,0.09407656,95953.0,95950.0,0.072954]
[1732465307971,0.19829456,95953.0,95948.0,0.072955]
[1732465308243,0.09407656,95953.0,95949.0,0.072954]
[1732465308451,0.10201427,95954.0,95949.0,0.072954]
[1732465308452,0.09287841,95952.0,95949.0,0.072954]
[1732465308672,0.09287841,95952.0,95946.0,0.072957]
[1732465308881,0.09287841,95952.0,95945.0,0.072957]
[1732465309105,0.09287841,95952.0,95948.0,0.072955]
[1732465309786,0.09287841,95952.0,95950.0,0.072954]
[1732465310014,0.09287841,95952.0,95951.0,0.072953]
[1732465312186,0.09287841,95952.0,95949.0,0.072955]
[1732465312626,0.09287841,95952.0,95951.0,0.072953]
[1732465312843,0.09287841,95952.0,95949.0,0.072955]
[1732465313073,0.09287841,95952.0,95945.0,0.072957]
[1732465313289,0.09287841,95952.0,95949.0,0.072954]
[1732465313511,0.09459241,95952.0,95951.0,0.072953]
[1732465314185,0.09459241,95952.0,95950.0,0.072953]
[1732465314397,0.09459241,95952.0,95951.0,0.072953]
[1732465314612,0.09459241,95952.0,95949.0,0.072954]
[1732465314863,0.09459241,95952.0,95951.0,0.072953]
[1732465315079,0.09459241,95952.0,95950.0,0.072954]
[1732465315288,0.09459241,95952.0,95949.0,0.072954]
[1732465315516,0.09459241,95952.0,95950.0,0.072953]
[1732465315727,0.09459241,95952.0,95951.0,0.072953]
[1732465321336,0.09459241,95952.0,95948.0,0.072955]
[1732465321550,0.09459241,95952.0,95949.0,0.072955]
[1732465321756,0.09459241,95952.0,95951.0,0.072953]
[1732465323728,0.09459241,95952.0,95951.0,0.11535841]
[1732465323954,0.001714,95952.0,95951.0,0.39300051]
[1732465324176,0.001714,95952.0,95951.0,0.8304663]
[1732465324407,0.001714,95952.0,95951.0,0.51697268]
[1732465325142,1e-06,95952.0,95951.0,0.51897268]
[1732465325347,0.001714,95970.0,95969.0,0.19954]
[1732465326286,0.001714,95970.0,95969.0,0.48611657]
[1732465326518,0.001714,95970.0,95969.0,0.19954]
[1732465326738,0.001714,95970.0,95969.0,0.36877077]
[1732465326992,0.001714,95970.0,95969.0,0.83455375]
[1732465326993,1e-06,95970.0,95969.0,0.83455375]
[1732465327234,0.0017128,96013.0,96003.0,0.072914]
[1732465334795,0.0017128,96013.0,96003.0,0.1995556]
[1732465335012,0.0017128,96013.0,96003.0,0.45156987]
[1732465335225,0.0017128,96013.0,96003.0,0.45052827]
[1732465335722,0.0017128,96013.0,96003.0,0.47352827]
[1732465339531,0.0017128,96013.0,96003.0,0.45052827]
[1732465339743,0.02037445,96010.0,96003.0,0.072914]
[1732465344445,0.0816,96003.0,95989.0,0.072924]
[1732465344683,0.0816,96003.0,95999.0,0.072916]
[1732465344923,0.0816,96003.0,96001.0,0.072915]
[1732465345152,0.0816,96003.0,96002.0,0.072915]
[1732465346978,0.155868,96011.0,96003.0,0.072914]
[1732465347215,0.051713,96011.0,96003.0,0.072914]
[1732465350300,0.155868,96011.0,96003.0,0.072914]
[1732465350527,0.155868,96011.0,95993.0,0.072921]
[1732465350528,0.051713,96011.0,95990.0,0.072924]
[1732465350800,0.208312,96010.0,95987.0,0.15]
[1732465351076,0.104157,96009.0,96003.0,0.072914]
[1732465351311,0.104161,96005.0,95999.0,0.072917]
[1732465351550,0.208312,96010.0,96003.0,0.072914]
[1732465351774,0.155868,96011.0,96003.0,0.072914]
[1732465352275,0.051713,96011.0,96003.0,0.072914]
[1732465356772,0.051713,96011.0,96003.0,0.32596973]
[1732465356983,0.051713,96011.0,96003.0,0.34992827]
[1732465357227,0.051713,96011.0,96003.0,0.47182827]
[1732465359079,0.051713,96011.0,96003.0,0.88239628]
[1732465359317,0.051713,96011.0,96003.0,0.46982827]
[1732465363465,0.051713,96011.0,96003.0,0.44682827]
[1732465364324,0.051713,96011.0,96003.0,0.88064256]
[1732465364542,0.04858412,96011.0,96010.0,0.072909]
[1732465364769,0.04858412,96011.0,96010.0,0.32492327]
[1732465370496,0.04858412,96011.0,96010.0,0.34792327]
[1732465371175,0.04858412,96011.0,96010.0,0.661544]
[1732465371601,0.04858412,96011.0,96010.0,0.32577977]
[1732465372277,0.04858412,96011.0,96010.0,0.6394005]
[1732465372523,0.04858412,96011.0,96010.0,0.32577977]
[1732465372724,0.04858412,96011.0,96010.0,0.6394005]
[1732465373835,0.04858412,96011.0,96010.0,0.64045222]
[1732465374265,0.04858412,96011.0,96010.0,0.35077977]
[1732465374930,0.04768288,96011.0,96010.0,0.35077977]
[1732465375138,0.04768288,96011.0,96010.0,0.66542061]
[1732465375343,0.04768288,96011.0,96010.0,0.35077977]
[1732465375550,0.04768288,96011.0,96010.0,0.66542299]
[1732465375971,0.04768288,96011.0,96010.0,0.35077977]
[1732465376434,0.04768288,96011.0,96010.0,0.66540343]
[1732465376675,0.04768288,96011.0,96010.0,0.66340343]
[1732465376909,0.04768288,96011.0,96010.0,0.34877977]
[1732465378480,0.04768288,96011.0,96010.0,0.35077977]
[1732465378688,0.04768288,96011.0,96010.0,0.34877977]
[1732465380222,0.04768288,96011.0,96010.0,0.35077977]
[1732465380679,8.8e-07,96011.0,96010.0,0.35077977]
[1732465380891,4.8e-07,96019.0,96017.0,0.19999964]
[1732465381132,4.8e-07,96019.0,96018.0,0.62945708]
[1732465381370,4.8e-07,96019.0,96018.0,0.67631591]
[1732465381595,4.8e-07,96019.0,96018.0,0.71273291]
[1732465382688,4.8e-07,96019.0,96018.0,0.67831591]
[1732465382903,4.8e-07,96019.0,96018.0,0.99276651]
[1732465383113,4.8e-07,96019.0,96018.0,0.99276704]
[1732465383324,4.8e-07,96019.0,96018.0,0.67631591]
[1732465383557,4.8e-07,96019.0,96018.0,0.79070862]
[1732465383769,4.8e-07,96019.0,96018.0,0.32491627]
[1732465384219,4.8e-07,96019.0,96018.0,0.36711612]
[1732465385374,4.8e-07,96019.0,96018.0,0.26510185]
[1732465391068,4.8e-07,96019.0,96018.0,0.26467645]
[1732465392953,0.0775,96032.0,96031.0,0.072893]
[1732465396198,0.0792126,96032.0,96031.0,0.072893]
[1732465396422,0.0792126,96032.0,96031.0,0.48576602]
[1732465396629,0.0792126,96032.0,96031.0,0.072893]
[1732465397117,0.0792126,96032.0,96031.0,0.48576602]
[1732465397346,0.0792126,96032.0,96031.0,0.072893]
[1732465400337,0.0017126,96032.0,96031.0,0.072893]
[1732465402636,0.0017126,96032.0,96031.0,0.07393415]
[1732465403570,0.0017126,96032.0,96031.0,0.072893]
[1732465403766,0.0017126,96032.0,96031.0,0.07393419]
[1732465403991,0.0017126,96032.0,96031.0,0.072893]
[1732465404211,0.0017126,96032.0,96031.0,0.32490727]
[1732465405591,6e-07,96032.0,96031.0,0.42590727]
[1732465405828,6e-07,96032.0,96031.0,0.42790727]
[1732465406274,0.001714,96048.0,96047.0,0.07288]
[1732465407000,0.001714,96048.0,96047.0,0.47983529]
[1732465407205,0.001714,96048.0,96047.0,0.48079427]
[1732465408550,0.001714,96048.0,96047.0,0.52195844]
[1732465409294,0.001714,96048.0,96047.0,0.36605844]
[1732465409746,0.001714,96048.0,96047.0,0.68051423]
[1732465410482,0.001714,96048.0,96047.0,0.36605844]
[1732465416802,0.001714,96048.0,96047.0,0.71995808]
[1732465417291,0.001714,96065.0,96064.0,0.074868]
[1732465417505,0.001714,96065.0,96064.0,0.34892301]
[1732465417740,0.001714,96065.0,96064.0,0.34788227]
[1732465417985,0.001714,96065.0,96064.0,0.54788191]
[1732465418221,1e-08,96066.0,96065.0,0.20199964]
[1732465418437,1e-08,96066.0,96065.0,0.54988091]
[1732465418721,0.0017116,96074.0,96073.0,0.44586064]
[1732465418722,6.1e-07,96074.0,96073.0,0.44586064]
[1732465418955,2.1e-07,96077.0,96076.0,0.44585764]
[1732465419199,2.1e-07,96077.0,96076.0,0.54787191]
[1732465419443,2.1e-07,96077.0,96076.0,0.58165098]
[1732465419911,2.1e-07,96077.0,96076.0,0.57965098]
[1732465420124,2.1e-07,96077.0,96076.0,0.58165098]
[1732465420384,2.1e-07,96077.0,96076.0,0.61012979]
[1732465420596,0.0017142,96093.0,96087.0,0.07285]
[1732465420812,0.0017142,96093.0,96087.0,0.32486427]
[1732465421045,0.0017142,96093.0,96087.0,0.35664334]
[1732465421521,0.0017142,96093.0,96087.0,0.76780662]
[1732465421750,0.0017142,96093.0,96087.0,0.35664334]
[1732465422193,0.0017142,96093.0,96087.0,0.76783494]
[1732465422485,0.0017142,96093.0,96087.0,0.35664334]
[1732465422936,0.0017142,96093.0,96087.0,0.07285]
[1732465422937,0.0850114,96088.0,96087.0,0.07285]
[1732465423183,0.0017114,96088.0,96087.0,0.07389063]
[1732465423420,0.0017114,96088.0,96087.0,0.07285]
[1732465425678,0.10037222,96088.0,96082.0,0.072854]
[1732465425901,0.0775,96087.0,96082.0,0.072854]
[1732465426132,0.07512225,96087.0,96079.0,0.15]
[1732465426361,0.07512225,96087.0,96079.0,0.062448]
[1732465426571,0.07512225,96087.0,96084.0,0.062444]
[1732465426801,0.07512225,96087.0,96086.0,0.062444]
[1732465427062,0.07512225,96087.0,96084.0,0.062444]
[1732465427265,0.07512225,96087.0,96076.0,0.04234599]
[1732465427266,0.07512225,96087.0,96078.0,0.062449]
[1732465427475,0.07512225,96087.0,96086.0,0.062444]
[1732465427950,0.07512225,96087.0,96085.0,0.062444]
[1732465428161,0.07512225,96087.0,96086.0,0.062444]
[1732465430844,0.06499181,96087.0,96086.0,0.062444]
[1732465431068,0.06499181,96087.0,96064.0,0.15]
[1732465431491,0.06499181,96087.0,96085.0,0.072852]
[1732465431728,0.06499181,96087.0,96086.0,0.072851]
[1732465432199,0.06499181,96087.0,96083.0,0.072853]
[1732465432430,0.06499181,96087.0,96074.0,0.15]
[1732465432668,0.06499181,96087.0,96084.0,0.072852]
[1732465432913,0.06499181,96087.0,96075.0,0.145718]
[1732465433140,0.06499181,96087.0,96082.0,0.072854]
[1732465433570,0.06499181,96087.0,96085.0,0.0008557]
[1732465433787,0.17077521,96087.0,96085.0,0.0008557]
[1732465434234,0.104073,96086.0,96085.0,0.0008557]
[1732465434680,0.06670321,96087.0,96085.0,0.0008557]
[1732465435220,0.06670321,96087.0,96086.0,0.072851]
[1732465436531,0.0017114,96087.0,96086.0,0.072851]
[1732465440455,0.0017114,96087.0,96086.0,0.1759059]
[1732465440679,0.0017114,96087.0,96086.0,0.21699889]
[1732465441769,0.0017114,96087.0,96086.0,0.11498462]
[1732465442232,0.0017114,96087.0,96086.0,0.072851]